[Event "CCT Chessable Masters Play-In 2025"]
[Site "Online"]
[Date "2025.02.17"]
[Round "4.26"]
[White "Bjerre, Jonas Buhl"]
[Black "Bok, Benjamin"]
[Result "1/2-1/2"]
[ECO "C50"]
[WhiteElo "2640"]
[BlackElo "2583"]
[PlyCount "97"]
[EventDate "2025.02.13"]
[EventType "swiss"]
[EventCountry "NET"]
[TimeControl "600"]
[WhiteClock "0:01:50"]
[BlackClock "0:00:38"]

1. e4 {[%emt 0:00:01]} e5 {[%emt 0:00:04]} 2. Nf3 {[%emt 0:00:01]} Nc6 {[%emt 0:00:00]} 3. Bc4 {[%emt 0:00:01]} Bc5 {[%emt 0:00:02]} 4. d3 {[%emt 0:00:01]} Nf6 {[%emt 0:00:01]} 5. a4 {[%emt 0:00:02]} a5 {[%emt 0:00:09]} 6. Be3 {[%emt 0:00:02]} Bxe3 {[%emt 0:00:09]} 7. fxe3 {[%emt 0:00:00]} d6 {[%emt 0:00:03]} 8. O-O {[%emt 0:00:03]} O-O {[%emt 0:00:02]} 9. Nbd2 {[%emt 0:00:02]} Ne7 {[%emt 0:00:07]} 10. Nh4 {[%emt 0:00:02]} Ng6 {[%emt 0:00:02]} 11. Nxg6 {[%emt 0:00:06]} hxg6 {[%emt 0:00:00]} 12. Nf3 {[%emt 0:00:01]} c6 {[%emt 0:00:09]} 13. Bb3 {[%emt 0:00:35]} Nh7 {[%emt 0:04:46]} 14. Qe1 {[%emt 0:00:21]} Qe8 {[%emt 0:00:20]} 15. Nd2 {[%emt 0:00:59]} Be6 {[%emt 0:00:17]} 16. Bxe6 {[%emt 0:00:03]} Qxe6 {[%emt 0:00:00]} 17. Nc4 {[%emt 0:00:02]} d5 {[%emt 0:00:07]} 18. exd5 {[%emt 0:00:25]} cxd5 {[%emt 0:00:03]} 19. Nxa5 {[%emt 0:00:02]} b6 {[%emt 0:00:11]} 20. Nb3 {[%emt 0:00:03]} Qc6 {[%emt 0:00:02]} 21. Qc3 {[%emt 0:02:30]} Qxc3 {[%emt 0:00:03]} 22. bxc3 {[%emt 0:00:00]} Rfc8 {[%emt 0:00:01]} 23. c4 {[%emt 0:00:11]} dxc4 {[%emt 0:00:02]} 24. Nd2 {[%emt 0:00:01]} cxd3 {[%emt 0:00:07]} 25. cxd3 {[%emt 0:00:00]} Nf6 {[%emt 0:00:16]} 26. Nc4 {[%emt 0:00:04]} Nd7 {[%emt 0:00:08]} 27. Nd6 {[%emt 0:00:25]} Rf8 {[%emt 0:00:11]} 28. d4 {[%emt 0:00:07]} exd4 {[%emt 0:00:05]} 29. exd4 {[%emt 0:00:00]} Nf6 {[%emt 0:00:18]} 30. Rfb1 {[%emt 0:00:09]} Ra6 {[%emt 0:00:14]} 31. Nc4 {[%emt 0:00:20]} Nd5 {[%emt 0:00:03]} 32. Rb5 {[%emt 0:00:02]} Rd8 {[%emt 0:00:04]} 33. Kf2 {[%emt 0:00:05]} Nc3 {[%emt 0:00:11]} 34. Rxb6 {[%emt 0:00:14]} Rxa4 {[%emt 0:00:01]} 35. Rxa4 {[%emt 0:00:03]} Nxa4 {[%emt 0:00:01]} 36. Rd6 {[%emt 0:00:03]} Rxd6 {[%emt 0:00:01]} 37. Nxd6 {[%emt 0:00:01]} Nc3 {[%emt 0:00:03]} 38. Kf3 {[%emt 0:00:02]} Kf8 {[%emt 0:00:02]} 39. h4 {[%emt 0:00:08]} Ke7 {[%emt 0:00:06]} 40. Ne4 {[%emt 0:00:01]} Nd5 {[%emt 0:00:03]} 41. Nc5 {[%emt 0:00:04]} f5 {[%emt 0:00:06]} 42. g4 {[%emt 0:00:19]} fxg4+ {[%emt 0:00:26]} 43. Kxg4 {[%emt 0:00:00]} Ne3+ {[%emt 0:00:02]} 44. Kg5 {[%emt 0:00:01]} Nf5 {[%emt 0:00:04]} 45. d5 {[%emt 0:00:21]} Nxh4 {[%emt 0:00:09]} 46. Kxh4 {[%emt 0:00:06]} Kd6 {[%emt 0:00:01]} 47. Kg5 {[%emt 0:00:01]} Kxd5 {[%emt 0:00:00]} 48. Kxg6 {[%emt 0:00:00]} Kxc5 {[%emt 0:00:00]} 49. Kxg7 {[%emt 0:00:00]} 1/2-1/2

[Event "CCT Chessable Masters Play-In 2025"]
[Site "Online"]
[Date "2025.02.17"]
[Round "4.27"]
[White "Narayanan, Srinath"]
[Black "Xu, Xiangyu"]
[Result "0-1"]
[ECO "B30"]
[WhiteElo "2516"]
[BlackElo "2623"]
[PlyCount "120"]
[EventDate "2025.02.13"]
[EventType "swiss"]
[EventCountry "NET"]
[TimeControl "600"]
[WhiteClock "0:00:03"]
[BlackClock "0:00:04"]

1. e4 {[%emt 0:00:01]} c5 {[%emt 0:00:02]} 2. Nf3 {[%emt 0:00:01]} Nc6 {[%emt 0:00:01]} 3. Bb5 {[%emt 0:00:03]} Nf6 {[%emt 0:00:01]} 4. Nc3 {[%emt 0:00:04]} Nd4 {[%emt 0:00:18]} 5. Bd3 {[%emt 0:00:20]} Nxf3+ {[%emt 0:00:28]} 6. Qxf3 {[%emt 0:00:02]} d6 {[%emt 0:00:01]} 7. b3 {[%emt 0:00:15]} a6 {[%emt 0:00:16]} 8. Bb2 {[%emt 0:00:03]} e6 {[%emt 0:00:01]} 9. O-O {[%emt 0:00:24]} Be7 {[%emt 0:00:03]} 10. Ne2 {[%emt 0:00:03]} O-O {[%emt 0:00:30]} 11. e5 {[%emt 0:00:04]} dxe5 {[%emt 0:00:11]} 12. Bxe5 {[%emt 0:00:00]} Qd5 {[%emt 0:00:21]} 13. Qg3 {[%emt 0:00:35]} g6 {[%emt 0:02:34]} 14. Nc3 {[%emt 0:00:25]} Qd8 {[%emt 0:00:03]} 15. a4 {[%emt 0:00:21]} Nh5 {[%emt 0:00:09]} 16. Qf3 {[%emt 0:00:17]} f6 {[%emt 0:00:16]} 17. Bg3 {[%emt 0:00:03]} e5 {[%emt 0:00:04]} 18. Bc4+ {[%emt 0:01:01]} Kg7 {[%emt 0:00:05]} 19. d3 {[%emt 0:00:00]} Rb8 {[%emt 0:00:17]} 20. a5 {[%emt 0:00:03]} Bd7 {[%emt 0:00:07]} 21. Bd5 {[%emt 0:00:21]} Qc7 {[%emt 0:00:03]} 22. Qe3 {[%emt 0:00:09]} Rbe8 {[%emt 0:00:25]} 23. Bf3 {[%emt 0:00:47]} Nxg3 {[%emt 0:00:01]} 24. hxg3 {[%emt 0:00:00]} Bd6 {[%emt 0:00:07]} 25. g4 {[%emt 0:00:24]} Qc8 {[%emt 0:00:48]} 26. Qe2 {[%emt 0:01:03]} e4 {[%emt 0:00:02]} 27. Nxe4 {[%emt 0:01:20]} Be5 {[%emt 0:00:00]} 28. Qd1 {[%emt 0:00:23]} Qc7 {[%emt 0:00:32]} 29. Ra2 {[%emt 0:00:19]} f5 {[%emt 0:00:20]} 30. Nd2 {[%emt 0:00:07]} Bd4 {[%emt 0:00:10]} 31. gxf5 {[%emt 0:00:03]} Rxf5 {[%emt 0:00:04]} 32. Ne4 {[%emt 0:00:02]} Ref8 {[%emt 0:00:49]} 33. Bg4 {[%emt 0:00:03]} Rf4 {[%emt 0:00:09]} 34. Bxd7 {[%emt 0:00:02]} Qxd7 {[%emt 0:00:01]} 35. c3 {[%emt 0:00:03]} Be5 {[%emt 0:00:01]} 36. Re2 {[%emt 0:00:05]} Rh4 {[%emt 0:00:02]} 37. Rfe1 {[%emt 0:00:21]} Bh2+ {[%emt 0:00:07]} 38. Kf1 {[%emt 0:00:00]} Rf7 {[%emt 0:00:04]} 39. Re3 {[%emt 0:00:06]} Be5 {[%emt 0:00:02]} 40. Rf3 {[%emt 0:00:03]} Rh1+ {[%emt 0:00:02]} 41. Ke2 {[%emt 0:00:01]} Rxf3 {[%emt 0:00:02]} 42. gxf3 {[%emt 0:00:00]} Rh2 {[%emt 0:00:01]} 43. Rh1 {[%emt 0:00:01]} Qe6 {[%emt 0:00:02]} 44. Rxh2 {[%emt 0:00:01]} Bxh2 {[%emt 0:00:00]} 45. Qh1 {[%emt 0:00:00]} Bf4 {[%emt 0:00:01]} 46. Qg2 {[%emt 0:00:01]} h5 {[%emt 0:00:02]} 47. Kf1 {[%emt 0:00:02]} Qxb3 {[%emt 0:00:00]} 48. Qh3 {[%emt 0:00:00]} Qd5 {[%emt 0:00:03]} 49. Kg2 {[%emt 0:00:00]} Qxd3 {[%emt 0:00:01]} 50. Qc8 {[%emt 0:00:01]} Qd5 {[%emt 0:00:02]} 51. Nxc5 {[%emt 0:00:01]} Qg5+ {[%emt 0:00:00]} 52. Kf1 {[%emt 0:00:01]} Qf5 {[%emt 0:00:01]} 53. Ne6+ {[%emt 0:00:00]} Kf6 {[%emt 0:00:01]} 54. Qf8+ {[%emt 0:00:01]} Kxe6 {[%emt 0:00:00]} 55. Qe8+ {[%emt 0:00:00]} Kf6 {[%emt 0:00:00]} 56. Qg8 {[%emt 0:00:00]} Kg5 {[%emt 0:00:01]} 57. Qf8 {[%emt 0:00:00]} Qxf8 {[%emt 0:00:01]} 58. Kg2 {[%emt 0:00:00]} Qc5 {[%emt 0:00:00]} 59. c4 {[%emt 0:00:00]} Qxc4 {[%emt 0:00:00]} 60. Kh3 {[%emt 0:00:01]} Qb5 {[%emt 0:00:01]} 0-1

[Event "CCT Chessable Masters Play-In 2025"]
[Site "Online"]
[Date "2025.02.17"]
[Round "4.28"]
[White "Sadhwani, Raunak"]
[Black "Tari, Aryan"]
[Result "1-0"]
[ECO "A21"]
[WhiteElo "2666"]
[BlackElo "2621"]
[PlyCount "89"]
[EventDate "2025.02.13"]
[EventType "swiss"]
[EventCountry "NET"]
[TimeControl "600"]
[WhiteClock "0:04:52"]
[BlackClock "0:02:16"]

1. c4 {[%emt 0:00:01]} e5 {[%emt 0:00:03]} 2. Nc3 {[%emt 0:00:01]} Bb4 {[%emt 0:00:01]} 3. Nd5 {[%emt 0:00:04]} Be7 {[%emt 0:00:02]} 4. Nf3 {[%emt 0:00:09]} d6 {[%emt 0:00:08]} 5. d4 {[%emt 0:00:03]} Nf6 {[%emt 0:00:01]} 6. Nc3 {[%emt 0:00:10]} exd4 {[%emt 0:00:27]} 7. Nxd4 {[%emt 0:00:00]} d5 {[%emt 0:00:03]} 8. cxd5 {[%emt 0:00:38]} Nxd5 {[%emt 0:00:04]} 9. Ndb5 {[%emt 0:00:00]} Nxc3 {[%emt 0:00:08]} 10. Qxd8+ {[%emt 0:00:00]} Bxd8 {[%emt 0:00:08]} 11. Nxc3 {[%emt 0:00:01]} Be6 {[%emt 0:00:03]} 12. e4 {[%emt 0:00:01]} Nd7 {[%emt 0:00:36]} 13. f4 {[%emt 0:00:07]} f6 {[%emt 0:00:05]} 14. Be3 {[%emt 0:00:03]} c6 {[%emt 0:00:01]} 15. Be2 {[%emt 0:00:11]} Bb6 {[%emt 0:00:02]} 16. Kf2 {[%emt 0:00:00]} Ke7 {[%emt 0:00:06]} 17. Rhd1 {[%emt 0:00:06]} Rhd8 {[%emt 0:00:01]} 18. Rd2 {[%emt 0:00:05]} Bxe3+ {[%emt 0:00:21]} 19. Kxe3 {[%emt 0:00:00]} a5 {[%emt 0:00:19]} 20. Rc1 {[%emt 0:00:06]} Nb6 {[%emt 0:00:07]} 21. Rxd8 {[%emt 0:00:05]} Rxd8 {[%emt 0:00:02]} 22. a3 {[%emt 0:00:02]} Bc4 {[%emt 0:00:05]} 23. Nb1 {[%emt 0:00:06]} Bxe2 {[%emt 0:00:03]} 24. Kxe2 {[%emt 0:00:00]} Na4 {[%emt 0:00:48]} 25. b3 {[%emt 0:00:18]} Nb6 {[%emt 0:00:01]} 26. Nd2 {[%emt 0:00:09]} Nc8 {[%emt 0:00:01]} 27. Rc5 {[%emt 0:00:10]} a4 {[%emt 0:00:21]} 28. bxa4 {[%emt 0:00:02]} Kd6 {[%emt 0:00:01]} 29. Rc3 {[%emt 0:00:18]} Kc7 {[%emt 0:00:03]} 30. Rh3 {[%emt 0:00:45]} h6 {[%emt 0:00:07]} 31. Rg3 {[%emt 0:00:01]} Rd7 {[%emt 0:00:01]} 32. Nc4 {[%emt 0:00:04]} Nb6 {[%emt 0:00:13]} 33. Nb2 {[%emt 0:00:06]} g5 {[%emt 0:00:09]} 34. Rh3 {[%emt 0:00:04]} gxf4 {[%emt 0:00:18]} 35. a5 {[%emt 0:00:06]} Nc8 {[%emt 0:00:03]} 36. Rxh6 {[%emt 0:00:03]} Rd4 {[%emt 0:00:11]} 37. Kf3 {[%emt 0:00:08]} Nd6 {[%emt 0:00:02]} 38. Rxf6 {[%emt 0:00:07]} c5 {[%emt 0:01:00]} 39. e5 {[%emt 0:00:07]} Nb5 {[%emt 0:00:02]} 40. Rxf4 {[%emt 0:00:05]} Rd2 {[%emt 0:00:05]} 41. Nc4 {[%emt 0:00:07]} Nd4+ {[%emt 0:00:01]} 42. Ke4 {[%emt 0:00:01]} Rxg2 {[%emt 0:00:06]} 43. Kd5 {[%emt 0:00:07]} Rg7 {[%emt 0:00:05]} 44. Nd6 {[%emt 0:00:18]} Nc6 {[%emt 0:01:10]} 45. Ne8+ {[%emt 0:00:03]} 1-0

[Event "CCT Chessable Masters Play-In 2025"]
[Site "Online"]
[Date "2025.02.17"]
[Round "4.29"]
[White "Bartel, Mateusz"]
[Black "Dubov, Daniil"]
[Result "0-1"]
[ECO "B50"]
[WhiteElo "2629"]
[BlackElo "2701"]
[PlyCount "142"]
[EventDate "2025.02.13"]
[EventType "swiss"]
[EventCountry "NET"]
[TimeControl "600"]
[WhiteClock "0:00:05"]
[BlackClock "0:00:25"]

1. e4 {[%emt 0:00:01]} c5 {[%emt 0:00:02]} 2. Nf3 {[%emt 0:00:01]} d6 {[%emt 0:00:01]} 3. c3 {[%emt 0:00:01]} Nf6 {[%emt 0:00:02]} 4. Bd3 {[%emt 0:00:01]} Nc6 {[%emt 0:00:57]} 5. Bc2 {[%emt 0:00:02]} Bg4 {[%emt 0:00:13]} 6. d3 {[%emt 0:00:01]} e6 {[%emt 0:00:12]} 7. Nbd2 {[%emt 0:00:01]} Be7 {[%emt 0:00:02]} 8. h3 {[%emt 0:00:01]} Bh5 {[%emt 0:00:02]} 9. Nf1 {[%emt 0:00:02]} d5 {[%emt 0:00:10]} 10. Ng3 {[%emt 0:00:03]} Bg6 {[%emt 0:00:08]} 11. Qe2 {[%emt 0:00:03]} Qc7 {[%emt 0:00:06]} 12. Bg5 {[%emt 0:00:22]} O-O-O {[%emt 0:00:37]} 13. e5 {[%emt 0:00:34]} Nh5 {[%emt 0:00:09]} 14. Bxe7 {[%emt 0:00:22]} Qxe7 {[%emt 0:00:11]} 15. O-O {[%emt 0:00:35]} d4 {[%emt 0:00:16]} 16. c4 {[%emt 0:00:18]} Nb4 {[%emt 0:00:11]} 17. Nxh5 {[%emt 0:00:12]} Bxh5 {[%emt 0:00:02]} 18. Bd1 {[%emt 0:00:08]} Bg6 {[%emt 0:00:23]} 19. Ne1 {[%emt 0:00:02]} f6 {[%emt 0:00:01]} 20. exf6 {[%emt 0:00:13]} gxf6 {[%emt 0:00:02]} 21. a3 {[%emt 0:00:05]} Nc6 {[%emt 0:00:02]} 22. b4 {[%emt 0:00:01]} Rhg8 {[%emt 0:00:17]} 23. Ba4 {[%emt 0:00:19]} e5 {[%emt 0:00:37]} 24. Bxc6 {[%emt 0:01:42]} bxc6 {[%emt 0:00:00]} 25. f4 {[%emt 0:00:00]} e4 {[%emt 0:00:16]} 26. f5 {[%emt 0:00:01]} Bf7 {[%emt 0:00:02]} 27. Rf4 {[%emt 0:00:05]} e3 {[%emt 0:00:03]} 28. Qf3 {[%emt 0:00:05]} Kc7 {[%emt 0:00:08]} 29. Rb1 {[%emt 0:00:08]} Qd6 {[%emt 0:00:17]} 30. Re4 {[%emt 0:01:05]} Rge8 {[%emt 0:00:39]} 31. bxc5 {[%emt 0:00:06]} Qxc5 {[%emt 0:00:05]} 32. Qf4+ {[%emt 0:00:09]} Qd6 {[%emt 0:00:07]} 33. Rxd4 {[%emt 0:00:03]} Qxf4 {[%emt 0:00:02]} 34. Rxf4 {[%emt 0:00:00]} Re7 {[%emt 0:00:28]} 35. Kf1 {[%emt 0:00:07]} c5 {[%emt 0:00:04]} 36. Ke2 {[%emt 0:00:01]} h5 {[%emt 0:00:03]} 37. Rb5 {[%emt 0:00:10]} Kc6 {[%emt 0:00:03]} 38. Nc2 {[%emt 0:00:03]} Bxc4 {[%emt 0:00:08]} 39. Rxc5+ {[%emt 0:00:49]} Kxc5 {[%emt 0:00:01]} 40. Rxc4+ {[%emt 0:00:00]} Kb6 {[%emt 0:00:00]} 41. Nd4 {[%emt 0:00:07]} Rg8 {[%emt 0:00:17]} 42. Rb4+ {[%emt 0:00:05]} Kc5 {[%emt 0:00:24]} 43. Ne6+ {[%emt 0:00:02]} Kc6 {[%emt 0:00:02]} 44. g4 {[%emt 0:00:01]} hxg4 {[%emt 0:00:04]} 45. hxg4 {[%emt 0:00:00]} Rh7 {[%emt 0:00:06]} 46. Rc4+ {[%emt 0:00:16]} Kd6 {[%emt 0:00:03]} 47. Rd4+ {[%emt 0:00:03]} Ke7 {[%emt 0:00:05]} 48. Nf4 {[%emt 0:00:02]} Rb8 {[%emt 0:00:30]} 49. Ng6+ {[%emt 0:00:01]} Ke8 {[%emt 0:00:02]} 50. Kxe3 {[%emt 0:00:01]} Rd7 {[%emt 0:00:08]} 51. Ra4 {[%emt 0:00:04]} Rb1 {[%emt 0:00:03]} 52. Ra6 {[%emt 0:00:04]} Kf7 {[%emt 0:00:01]} 53. Nf4 {[%emt 0:00:02]} Rb6 {[%emt 0:00:04]} 54. Ra4 {[%emt 0:00:07]} Rb3 {[%emt 0:00:01]} 55. Ra6 {[%emt 0:00:02]} Rb6 {[%emt 0:00:03]} 56. Ra4 {[%emt 0:00:03]} Rbd6 {[%emt 0:00:04]} 57. Rc4 {[%emt 0:00:04]} Ra6 {[%emt 0:00:01]} 58. a4 {[%emt 0:00:01]} Re7+ {[%emt 0:00:01]} 59. Ne6 {[%emt 0:00:01]} Rd7 {[%emt 0:00:02]} 60. d4 {[%emt 0:00:02]} Rb6 {[%emt 0:00:01]} 61. Ke4 {[%emt 0:00:02]} Rb1 {[%emt 0:00:01]} 62. g5 {[%emt 0:00:21]} fxg5 {[%emt 0:00:07]} 63. Nxg5+ {[%emt 0:00:01]} Kf6 {[%emt 0:00:01]} 64. Nf3 {[%emt 0:00:00]} Rb6 {[%emt 0:00:04]} 65. Ne5 {[%emt 0:00:02]} Rh7 {[%emt 0:00:01]} 66. Rc5 {[%emt 0:00:05]} Rd6 {[%emt 0:00:03]} 67. Ng4+ {[%emt 0:00:02]} Kg5 {[%emt 0:00:02]} 68. Ne5 {[%emt 0:00:05]} Rh4+ {[%emt 0:00:02]} 69. Ke3 {[%emt 0:00:01]} Rh3+ {[%emt 0:00:01]} 70. Nf3+ {[%emt 0:00:00]} Kg4 {[%emt 0:00:01]} 71. Ke4 {[%emt 0:00:06]} Rxf3 {[%emt 0:00:01]} 0-1

[Event "CCT Chessable Masters Play-In 2025"]
[Site "Online"]
[Date "2025.02.17"]
[Round "4.30"]
[White "Bologan, Victor"]
[Black "Oparin, Grigoriy"]
[Result "1-0"]
[ECO "C90"]
[WhiteElo "2603"]
[BlackElo "2660"]
[PlyCount "197"]
[EventDate "2025.02.13"]
[EventType "swiss"]
[EventCountry "NET"]
[TimeControl "600"]
[WhiteClock "0:00:03"]

1. e4 {[%emt 0:00:01]} e5 {[%emt 0:00:02]} 2. Nf3 {[%emt 0:00:01]} Nc6 {[%emt 0:00:01]} 3. Bc4 {[%emt 0:00:02]} Nf6 {[%emt 0:00:01]} 4. d3 {[%emt 0:00:00]} Be7 {[%emt 0:00:01]} 5. O-O {[%emt 0:00:04]} O-O {[%emt 0:00:01]} 6. Re1 {[%emt 0:00:00]} d6 {[%emt 0:00:02]} 7. c3 {[%emt 0:00:02]} Na5 {[%emt 0:00:14]} 8. Bb5 {[%emt 0:00:01]} a6 {[%emt 0:00:02]} 9. Ba4 {[%emt 0:00:01]} b5 {[%emt 0:00:00]} 10. Bc2 {[%emt 0:00:01]} c5 {[%emt 0:00:03]} 11. Nbd2 {[%emt 0:00:01]} Nc6 {[%emt 0:00:09]} 12. Nf1 {[%emt 0:00:02]} Re8 {[%emt 0:00:05]} 13. h3 {[%emt 0:00:01]} h6 {[%emt 0:00:04]} 14. Ne3 {[%emt 0:00:05]} Bf8 {[%emt 0:00:04]} 15. Nh2 {[%emt 0:00:16]} d5 {[%emt 0:00:51]} 16. exd5 {[%emt 0:00:42]} Nxd5 {[%emt 0:00:00]} 17. Qf3 {[%emt 0:00:15]} Be6 {[%emt 0:00:06]} 18. Bb3 {[%emt 0:00:49]} Nxe3 {[%emt 0:00:33]} 19. Bxe3 {[%emt 0:00:03]} Qd7 {[%emt 0:00:24]} 20. Ng4 {[%emt 0:01:20]} h5 {[%emt 0:00:45]} 21. Nh2 {[%emt 0:00:08]} g6 {[%emt 0:00:00]} 22. Qe2 {[%emt 0:00:54]} Rad8 {[%emt 0:00:12]} 23. Bg5 {[%emt 0:00:07]} Be7 {[%emt 0:00:11]} 24. Bxe7 {[%emt 0:00:09]} Rxe7 {[%emt 0:00:01]} 25. Qe3 {[%emt 0:00:14]} Qd6 {[%emt 0:00:41]} 26. Nf3 {[%emt 0:00:08]} Kg7 {[%emt 0:00:26]} 27. Ng5 {[%emt 0:00:31]} Bf5 {[%emt 0:00:11]} 28. Rad1 {[%emt 0:00:07]} Qf6 {[%emt 0:00:55]} 29. h4 {[%emt 0:00:20]} Na5 {[%emt 0:00:39]} 30. Qxc5 {[%emt 0:00:26]} Nxb3 {[%emt 0:00:04]} 31. axb3 {[%emt 0:00:01]} Bxd3 {[%emt 0:00:10]} 32. Ne4 {[%emt 0:00:12]} Qe6 {[%emt 0:00:26]} 33. Qe3 {[%emt 0:00:02]} Bxe4 {[%emt 0:00:19]} 34. Rxd8 {[%emt 0:00:03]} Bd5 {[%emt 0:00:01]} 35. b4 {[%emt 0:00:12]} Bb3 {[%emt 0:00:01]} 36. Qc5 {[%emt 0:00:13]} Qf6 {[%emt 0:00:11]} 37. Rd6 {[%emt 0:00:04]} Qxh4 {[%emt 0:00:07]} 38. Rxe5 {[%emt 0:00:04]} Be6 {[%emt 0:00:04]} 39. Qd4 {[%emt 0:00:06]} Qxd4 {[%emt 0:00:07]} 40. cxd4 {[%emt 0:00:02]} Rc7 {[%emt 0:00:13]} 41. Rc5 {[%emt 0:00:07]} Re7 {[%emt 0:00:03]} 42. f3 {[%emt 0:00:09]} h4 {[%emt 0:00:04]} 43. Kf2 {[%emt 0:00:03]} Bf5 {[%emt 0:00:03]} 44. Rxa6 {[%emt 0:00:08]} Bd3 {[%emt 0:00:01]} 45. Re5 {[%emt 0:00:11]} Rc7 {[%emt 0:00:01]} 46. d5 {[%emt 0:00:04]} Rc2+ {[%emt 0:00:01]} 47. Ke3 {[%emt 0:00:02]} Bc4 {[%emt 0:00:04]} 48. d6 {[%emt 0:00:11]} Rxg2 {[%emt 0:00:06]} 49. b3 {[%emt 0:00:11]} h3 {[%emt 0:00:15]} 50. Ra1 {[%emt 0:00:09]} h2 {[%emt 0:00:01]} 51. Rh1 {[%emt 0:00:02]} Bf1 {[%emt 0:00:23]} 52. d7 {[%emt 0:00:06]} Re2+ {[%emt 0:00:01]} 53. Kf4 {[%emt 0:00:03]} Rd2 {[%emt 0:00:01]} 54. Rxf1 {[%emt 0:00:02]} Rxd7 {[%emt 0:00:00]} 55. Rh1 {[%emt 0:00:01]} Rd4+ {[%emt 0:00:01]} 56. Kg3 {[%emt 0:00:02]} Rxb4 {[%emt 0:00:00]} 57. Re3 {[%emt 0:00:00]} f5 {[%emt 0:00:02]} 58. f4 {[%emt 0:00:01]} g5 {[%emt 0:00:00]} 59. Rf3 {[%emt 0:00:01]} Kg6 {[%emt 0:00:03]} 60. fxg5 {[%emt 0:00:01]} Kxg5 {[%emt 0:00:01]} 61. Rxh2 {[%emt 0:00:01]} Rg4+ {[%emt 0:00:01]} 62. Kf2 {[%emt 0:00:01]} Rd4 {[%emt 0:00:00]} 63. Rg2+ {[%emt 0:00:01]} Kf6 {[%emt 0:00:01]} 64. Ke3 {[%emt 0:00:02]} Rb4 {[%emt 0:00:01]} 65. Kd2 {[%emt 0:00:00]} Ke5 {[%emt 0:00:01]} 66. Re2+ {[%emt 0:00:01]} Kd6 {[%emt 0:00:02]} 67. Kc3 {[%emt 0:00:03]} Rh4 {[%emt 0:00:01]} 68. Rxf5 {[%emt 0:00:01]} b4+ {[%emt 0:00:00]} 69. Kb2 {[%emt 0:00:01]} Kc6 {[%emt 0:00:00]} 70. Rg2 {[%emt 0:00:01]} Kd6 {[%emt 0:00:02]} 71. Rg6+ {[%emt 0:00:02]} Ke7 {[%emt 0:00:00]} 72. Ra5 {[%emt 0:00:01]} Rh2+ {[%emt 0:00:01]} 73. Kc1 {[%emt 0:00:01]} Kf7 {[%emt 0:00:00]} 74. Rb6 {[%emt 0:00:02]} Rh1+ {[%emt 0:00:00]} 75. Kd2 {[%emt 0:00:01]} Rh2+ {[%emt 0:00:00]} 76. Kd3 {[%emt 0:00:01]} Rh3+ {[%emt 0:00:01]} 77. Kc4 {[%emt 0:00:01]} Rh4+ {[%emt 0:00:00]} 78. Kb5 {[%emt 0:00:01]} Rh5+ {[%emt 0:00:01]} 79. Kxb4 {[%emt 0:00:00]} Rh4+ {[%emt 0:00:00]} 80. Ka3 {[%emt 0:00:01]} Re4 {[%emt 0:00:01]} 81. Ra7+ {[%emt 0:00:01]} Re7 {[%emt 0:00:01]} 82. Rxe7+ {[%emt 0:00:02]} Kxe7 {[%emt 0:00:00]} 83. Kb4 {[%emt 0:00:00]} Kd7 {[%emt 0:00:00]} 84. Ka5 {[%emt 0:00:00]} Kc7 {[%emt 0:00:01]} 85. b4 {[%emt 0:00:00]} Kc8 {[%emt 0:00:00]} 86. b5 {[%emt 0:00:00]} Kc7 {[%emt 0:00:00]} 87. Ka6 {[%emt 0:00:01]} Kd7 {[%emt 0:00:00]} 88. Rc6 {[%emt 0:00:00]} Ke7 {[%emt 0:00:01]} 89. b6 {[%emt 0:00:00]} Kd7 {[%emt 0:00:00]} 90. Rc4 {[%emt 0:00:01]} Kd6 {[%emt 0:00:00]} 91. b7 {[%emt 0:00:01]} Kd5 {[%emt 0:00:00]} 92. Rc1 {[%emt 0:00:00]} Kd4 {[%emt 0:00:01]} 93. b8=Q {[%emt 0:00:01]} Kd5 {[%emt 0:00:00]} 94. Qd8+ {[%emt 0:00:01]} Ke6 {[%emt 0:00:01]} 95. Re1+ {[%emt 0:00:00]} Kf5 {[%emt 0:00:00]} 96. Qh4 {[%emt 0:00:02]} Kg6 {[%emt 0:00:02]} 97. Qf2 {[%emt 0:00:00]} Kg5 {[%emt 0:00:01]} 98. Rg1+ {[%emt 0:00:00]} Kh5 {[%emt 0:00:01]} 99. Qh2# {[%emt 0:00:00]} 1-0

[Event "CCT Chessable Masters Play-In 2025"]
[Site "Online"]
[Date "2025.02.17"]
[Round "4.31"]
[White "Bluebaum, Matthias"]
[Black "Volokitin, Andrei"]
[Result "1/2-1/2"]
[ECO "E51"]
[WhiteElo "2643"]
[BlackElo "2643"]
[PlyCount "85"]
[EventDate "2025.02.13"]
[EventType "swiss"]
[EventCountry "NET"]
[TimeControl "600"]
[WhiteClock "0:01:25"]
[BlackClock "0:01:07"]

1. d4 {[%emt 0:00:01]} Nf6 {[%emt 0:00:03]} 2. c4 {[%emt 0:00:02]} e6 {[%emt 0:00:01]} 3. Nc3 {[%emt 0:00:00]} Bb4 {[%emt 0:00:02]} 4. e3 {[%emt 0:00:01]} O-O {[%emt 0:00:01]} 5. Bd2 {[%emt 0:00:00]} d5 {[%emt 0:00:04]} 6. Nf3 {[%emt 0:00:01]} b6 {[%emt 0:00:01]} 7. cxd5 {[%emt 0:00:00]} exd5 {[%emt 0:00:02]} 8. Rc1 {[%emt 0:00:01]} Bb7 {[%emt 0:00:03]} 9. Bd3 {[%emt 0:00:01]} Re8 {[%emt 0:00:03]} 10. Ne5 {[%emt 0:00:01]} Nbd7 {[%emt 0:00:39]} 11. f4 {[%emt 0:00:03]} Bxc3 {[%emt 0:00:30]} 12. Bxc3 {[%emt 0:00:03]} Ne4 {[%emt 0:00:03]} 13. O-O {[%emt 0:00:44]} Nd6 {[%emt 0:01:06]} 14. Bb4 {[%emt 0:00:20]} Nf8 {[%emt 0:00:07]} 15. Qf3 {[%emt 0:00:12]} a5 {[%emt 0:00:42]} 16. Be1 {[%emt 0:00:11]} Ne4 {[%emt 0:01:05]} 17. Qh3 {[%emt 0:00:31]} f6 {[%emt 0:00:13]} 18. Bb5 {[%emt 0:01:37]} fxe5 {[%emt 0:00:28]} 19. Bxe8 {[%emt 0:00:03]} Qxe8 {[%emt 0:00:03]} 20. Rxc7 {[%emt 0:00:05]} Ba6 {[%emt 0:00:01]} 21. Rf3 {[%emt 0:00:13]} Be2 {[%emt 0:00:07]} 22. dxe5 {[%emt 0:00:33]} Ne6 {[%emt 0:00:18]} 23. Rc1 {[%emt 0:00:17]} Bxf3 {[%emt 0:00:03]} 24. gxf3 {[%emt 0:00:00]} N4c5 {[%emt 0:00:02]} 25. Rd1 {[%emt 0:00:11]} Qg6+ {[%emt 0:01:32]} 26. Qg4 {[%emt 0:00:01]} Qc2 {[%emt 0:00:18]} 27. Rd2 {[%emt 0:00:02]} Qb1 {[%emt 0:00:09]} 28. Kf1 {[%emt 0:00:27]} Re8 {[%emt 0:00:06]} 29. Qg2 {[%emt 0:00:55]} d4 {[%emt 0:00:14]} 30. exd4 {[%emt 0:00:26]} Nxf4 {[%emt 0:00:01]} 31. Qf2 {[%emt 0:00:18]} Ncd3 {[%emt 0:00:02]} 32. Qe3 {[%emt 0:00:01]} Rc8 {[%emt 0:00:04]} 33. Qe4 {[%emt 0:00:47]} Rc1 {[%emt 0:00:01]} 34. Qa8+ {[%emt 0:00:01]} Kf7 {[%emt 0:00:02]} 35. Qb7+ {[%emt 0:00:01]} Kg6 {[%emt 0:00:05]} 36. Qe4+ {[%emt 0:00:01]} Kh6 {[%emt 0:00:03]} 37. Re2 {[%emt 0:00:00]} Nxe2 {[%emt 0:00:10]} 38. Qh4+ {[%emt 0:00:01]} Kg6 {[%emt 0:00:01]} 39. Qg4+ {[%emt 0:00:00]} Kf7 {[%emt 0:00:01]} 40. Qd7+ {[%emt 0:00:01]} Kg6 {[%emt 0:00:11]} 41. Qg4+ {[%emt 0:00:17]} Kh6 {[%emt 0:00:05]} 42. Qh4+ {[%emt 0:00:02]} Kg6 {[%emt 0:00:01]} 43. Qg4+ {[%emt 0:00:03]} 1/2-1/2